bitfinex-derivatives/quotes_BTCF0:USTF0_20250609
["timestamp","ask_amount","ask_price","bid_price","bid_amount"]
[1749462280537,0.00254093,106510.0,106500.0,1.39766247]
[1749462281742,0.00254093,106510.0,106500.0,1.49163247]
[1749462282538,0.00254093,106510.0,106500.0,1.98733247]
[1749462282928,0.00214093,106510.0,106500.0,2.03432247]
[1749462283239,0.00254093,106510.0,106500.0,2.03432247]
[1749462284438,0.00254093,106510.0,106500.0,2.60944654]
[1749462286233,0.00254093,106510.0,106500.0,2.03432247]
[1749462287027,0.00254093,106510.0,106500.0,2.49421238]
[1749462288430,0.00254093,106510.0,106500.0,2.86782824]
[1749462288734,0.00254093,106510.0,106500.0,2.40793833]
[1749462289235,0.00254093,106510.0,106500.0,2.03432247]
[1749462290541,0.00254093,106510.0,106500.0,2.49432852]
[1749462291842,0.00254093,106510.0,106500.0,1.99862852]
[1749462292244,0.00254093,106510.0,106500.0,1.91239604]
[1749462292545,0.00214093,106510.0,106500.0,1.91239604]
[1749462292745,0.00254093,106510.0,106500.0,1.91239604]
[1749462295443,0.00254093,106510.0,106500.0,1.76840436]
[1749462295645,0.14154093,106510.0,106500.0,1.94348884]
[1749462296148,0.13954093,106510.0,106500.0,1.93348884]
[1749462296647,0.13954093,106510.0,106500.0,1.55450695]
[1749462296940,0.00054093,106510.0,106500.0,1.55850695]
[1749462297140,0.00054093,106510.0,106500.0,1.75470695]
[1749462297340,0.00054093,106510.0,106500.0,1.57962247]
[1749462297545,0.00014093,106510.0,106500.0,1.57862247]
[1749462297750,0.00054093,106510.0,106500.0,1.57862247]
[1749462297950,0.00014093,106510.0,106500.0,1.57862247]
[1749462298142,0.00054093,106510.0,106500.0,1.65370695]
[1749462298540,0.00014093,106510.0,106500.0,1.65370695]
[1749462298842,0.00054093,106510.0,106500.0,1.65370695]
[1749462299044,0.00014093,106510.0,106500.0,1.65370695]
[1749462299242,0.00054093,106510.0,106500.0,1.65370695]
[1749462299545,0.00054093,106510.0,106500.0,1.47862247]
[1749462299750,0.00054093,106510.0,106500.0,1.65370695]
[1749462300247,0.00054093,106510.0,106500.0,2.22883102]
[1749462300452,0.00054093,106510.0,106500.0,2.21683102]
[1749462300639,0.00054093,106510.0,106500.0,2.23083102]
[1749462301043,0.00054093,106510.0,106500.0,2.05574654]
[1749462301942,0.00054093,106510.0,106500.0,2.05775519]
[1749462302949,0.00054093,106510.0,106500.0,2.01076519]
[1749462303151,0.00054093,106510.0,106500.0,2.11076519]
[1749462303855,0.00054093,106510.0,106500.0,1.53363247]
[1749462305250,0.00054093,106510.0,106500.0,2.02933247]
[1749462305450,0.00054093,106510.0,106500.0,2.60646519]
[1749462306549,0.17562541,106510.0,106500.0,2.60646519]
[1749462306753,0.17562541,106510.0,106500.0,2.41026519]
[1749462307054,0.36974093,106510.0,106500.0,2.41026519]
[1749462307853,0.36974093,106510.0,106500.0,2.45725519]
[1749462308346,2.22760069,106510.0,106500.0,2.45725519]
[1749462310349,2.22760069,106510.0,106500.0,1.96155519]
[1749462310755,2.40268517,106510.0,106500.0,1.38442247]
[1749462311257,2.22760069,106510.0,106500.0,1.38442247]
[1749462311454,2.22760069,106510.0,106500.0,1.29045247]
[1749462311654,3.34195517,106510.0,106500.0,1.86845189]
[1749462312949,2.22720069,106510.0,106500.0,2.52057626]
[1749462313151,1.97980069,106510.0,106500.0,2.88867626]
[1749462313456,0.00014093,106510.0,106500.0,2.88767626]
[1749462313659,0.00054093,106510.0,106500.0,2.88767626]
[1749462314558,0.17562541,106510.0,106500.0,2.88767626]
[1749462314857,0.17562541,106510.0,106500.0,2.18856189]
[1749462315055,0.17562541,106510.0,106500.0,1.61056247]
[1749462315260,0.00054093,106510.0,106500.0,1.61056247]
[1749462316955,0.00054093,106510.0,106500.0,1.70453247]
[1749462317160,0.00054093,106510.0,106500.0,2.20023247]
[1749462317560,0.00014093,106510.0,106500.0,2.20023247]
[1749462317750,0.00054093,106510.0,106500.0,2.20023247]
[1749462317951,0.00054093,106510.0,106500.0,2.24722247]
[1749462318152,0.00054093,106510.0,106500.0,2.94633684]
[1749462318957,0.00054093,106510.0,106500.0,3.12142132]
[1749462319257,0.00054093,106510.0,106500.0,3.12147246]
[1749462319457,0.00014093,106510.0,106500.0,3.1213554]
[1749462319761,0.00014093,106510.0,106500.0,2.6256554]
[1749462319762,0.00054093,106510.0,106500.0,2.6256554]
[1749462320059,0.00014093,106510.0,106500.0,1.92654103]
[1749462320854,0.00054093,106510.0,106500.0,1.70965655]
[1749462321062,0.00014093,106510.0,106500.0,1.88574103]
[1749462321257,0.00054093,106510.0,106500.0,1.88574103]
[1749462321462,0.00014093,106510.0,106500.0,1.88574103]
[1749462321667,0.00054093,106510.0,106500.0,1.88574103]
[1749462322065,0.00054093,106510.0,106500.0,2.80956614]
[1749462322959,0.00969946,106520.0,106510.0,0.17508448]
[1749462323169,0.00969946,106520.0,106510.0,1.33325448]
[1749462323366,0.00969946,106520.0,106510.0,2.07065589]
[1749462323660,0.01009946,106520.0,106510.0,2.16453938]
[1749462324162,0.01009946,106520.0,106510.0,2.16853938]
[1749462324657,0.01009946,106520.0,106510.0,2.26241937]
[1749462325474,0.00969946,106520.0,106510.0,2.26241937]
[1749462325672,0.00969946,106520.0,106510.0,2.31740937]
[1749462325673,0.01009946,106520.0,106510.0,2.31740937]
[1749462326168,0.01009946,106520.0,106510.0,2.3175262]
[1749462326367,0.01009946,106520.0,106510.0,2.31748719]
[1749462326566,0.01009946,106520.0,106510.0,2.3175124]
[1749462326766,0.01009946,106520.0,106510.0,3.01315237]
[1749462326972,0.01009946,106520.0,106510.0,3.59500067]
[1749462327273,0.01009946,106520.0,106510.0,3.59492527]
[1749462327678,0.01009946,106520.0,106510.0,3.78064079]
[1749462327862,0.01009946,106520.0,106510.0,3.73365079]
[1749462328070,0.00969946,106520.0,106510.0,3.90873527]
[1749462328268,0.01009946,106520.0,106510.0,3.73365079]
[1749462328468,0.00969946,106520.0,106510.0,3.85041487]
[1749462328673,0.00969946,106520.0,106510.0,3.44965055]
[1749462328873,0.01009946,106520.0,106510.0,4.02431218]
[1749462329077,0.00969946,106520.0,106510.0,4.02431218]
[1749462329266,0.01009946,106520.0,106510.0,4.02431218]
[1749462329466,0.00969946,106520.0,106510.0,8.52431218]
[1749462329880,0.00969946,106520.0,106510.0,8.3492277]
[1749462330183,0.00969946,106520.0,106510.0,7.54179652]
[1749462330475,0.18518394,106520.0,106510.0,2.79211653]
[1749462330680,0.18518394,106520.0,106510.0,2.2174549]
[1749462331376,0.00969946,106520.0,106510.0,2.90617541]
[1749462331771,0.01009946,106520.0,106510.0,2.90617541]
[1749462332176,0.01009946,106520.0,106510.0,3.6549201]
[1749462332377,0.01009946,106520.0,106510.0,3.47983562]
[1749462332677,0.01009946,106520.0,106510.0,3.57371561]
[1749462332875,0.01009946,106520.0,106510.0,3.06007958]
[1749462333467,0.01009946,106520.0,106510.0,3.74808987]
[1749462333970,0.01009946,106520.0,106510.0,3.17442966]
[1749462334568,0.01009946,106520.0,106510.0,3.61369016]
[1749462335067,0.00969946,106520.0,106510.0,3.61376795]
[1749462335274,0.01009946,106520.0,106510.0,3.10076435]
[1749462335468,0.00969946,106520.0,106510.0,2.9258011]
[1749462335669,0.01009946,106520.0,106510.0,2.92575804]
[1749462335876,0.00969946,106520.0,106510.0,2.92567987]
[1749462336268,0.01009946,106520.0,106510.0,2.46713489]
[1749462337076,0.01009946,106520.0,106510.0,3.15464547]
[1749462337279,0.00935243,106540.0,106510.0,3.15464547]
[1749462337473,0.37015243,106540.0,106520.0,0.89404854]
[1749462337677,0.37015243,106540.0,106520.0,1.13524854]
[1749462337879,0.37015243,106540.0,106520.0,1.38054968]
[1749462338182,0.37015243,106540.0,106520.0,1.47442435]
[1749462338682,0.00935243,106540.0,106520.0,2.06399635]
[1749462338981,0.3608,106550.0,106530.0,0.04699]
[1749462339278,0.3608,106540.0,106530.0,0.34699]
[1749462339580,0.3608,106540.0,106530.0,0.77364227]
[1749462339790,0.3612,106540.0,106530.0,1.2308995]
[1749462340078,0.3608,106540.0,106530.0,1.24048961]
[1749462340271,0.3612,106540.0,106530.0,1.39628961]
[1749462340677,0.3612,106540.0,106530.0,1.41028961]
[1749462341176,0.3612,106540.0,106530.0,1.21642561]
[1749462341479,0.3612,106540.0,106530.0,0.77816838]
[1749462342180,0.3612,106540.0,106530.0,1.34830836]
[1749462342484,0.3612,106540.0,106530.0,1.33420971]
[1749462342686,0.3612,106540.0,106530.0,1.34620971]
[1749462342886,0.3612,106540.0,106530.0,1.32920971]
[1749462343081,0.3612,106540.0,106530.0,1.33320971]
[1749462343387,0.3612,106540.0,106530.0,1.34420971]
[1749462343885,0.3612,106540.0,106530.0,1.26786838]
[1749462344086,0.3612,106540.0,106530.0,1.44270392]
[1749462345772,0.3612,106540.0,106530.0,2.1302145]
[1749462345979,0.6204,106540.0,106530.0,2.1302145]
[1749462346186,0.6204,106540.0,106530.0,2.2302145]
[1749462346576,0.6204,106540.0,106530.0,2.05537896]
[1749462346879,0.6204,106540.0,106530.0,2.42745263]
[1749462347481,0.6204,106540.0,106530.0,1.73994205]
[1749462347677,0.6204,106540.0,106530.0,1.73894205]
[1749462348388,0.6204,106540.0,106530.0,2.29699675]
[1749462348584,0.3612,106540.0,106530.0,2.40496244]
[1749462348785,0.3612,106540.0,106530.0,2.57969629]
[1749462348985,0.3608,106540.0,106530.0,2.20762262]
[1749462349584,0.3612,106540.0,106530.0,2.20762262]
[1749462350080,0.3612,106540.0,106530.0,1.63256792]
[1749462350489,0.3608,106540.0,106530.0,1.63256792]
[1749462350790,0.3612,106540.0,106530.0,1.91609983]
[1749462350980,0.6223,106540.0,106530.0,1.91609983]
[1749462351181,0.4959,106540.0,106530.0,1.91609983]
[1749462351380,0.4955,106540.0,106530.0,2.83892494]
[1749462351589,0.4955,106540.0,106530.0,3.01376048]
[1749462351791,0.4959,106540.0,106530.0,3.01376048]
[1749462352479,0.4959,106540.0,106530.0,2.55539303]
[1749462353084,0.6183,106540.0,106530.0,2.38055749]
[1749462353896,0.6183,106540.0,106530.0,2.26139384]
[1749462354287,0.60182472,106540.0,106530.0,2.16752984]
[1749462354486,0.43464021,106540.0,106530.0,2.16752984]
[1749462354791,0.29412897,106540.0,106530.0,2.16752984]
[1749462354983,0.5621938,106540.0,106530.0,2.16752984]
[1749462355184,0.42213964,106540.0,106530.0,2.16752984]
[1749462355383,0.32846548,106540.0,106530.0,2.16752984]
[1749462355584,0.06452988,106540.0,106530.0,1.36386838]
[1749462355785,0.65763554,106550.0,106530.0,1.36386838]
[1749462355985,0.65763554,106550.0,106540.0,1.00677873]
[1749462356189,0.65763554,106550.0,106540.0,1.80247873]
[1749462356388,0.65763554,106550.0,106540.0,2.04741258]
[1749462356587,0.65763554,106550.0,106540.0,2.14127844]
[1749462357683,0.65763554,106550.0,106540.0,1.35828971]
[1749462358290,0.4828,106550.0,106540.0,1.35828971]
[1749462358685,2.7152953,106550.0,106540.0,0.86258971]
[1749462359098,2.7152953,106550.0,106540.0,0.86266154]
[1749462359299,2.7152953,106550.0,106540.0,0.86258971]
[1749462359497,2.7152953,106550.0,106540.0,0.86265885]
[1749462359798,2.7152953,106550.0,106540.0,0.86258971]
[1749462361186,2.7152953,106550.0,106540.0,0.76258971]
[1749462363094,2.54045976,106550.0,106540.0,0.60678971]
[1749462363598,2.54085976,106550.0,106540.0,0.60678971]
[1749462363892,2.54045976,106550.0,106540.0,0.60678971]
[1749462364292,2.54085976,106550.0,106540.0,1.10248971]
[1749462365289,0.683,106550.0,106540.0,1.10248971]
[1749462365494,0.6826,106550.0,106540.0,1.10248971]
[1749462365800,0.6826,106550.0,106540.0,1.25828971]
[1749462366206,0.683,106550.0,106540.0,1.35828971]
[1749462366393,0.6826,106550.0,106540.0,1.35828971]
[1749462366702,0.3222,106550.0,106540.0,1.35828971]
[1749462366902,0.3218,106550.0,106540.0,1.35828971]
[1749462367095,0.3222,106550.0,106540.0,1.35828971]
[1749462368197,0.683,106550.0,106540.0,1.35828971]
[1749462368403,0.683,106550.0,106540.0,2.16462739]
[1749462368600,2.7156953,106550.0,106540.0,1.51312739]
[1749462368802,3.82960084,106550.0,106540.0,0.95971739]
[1749462368991,3.82960084,106550.0,106540.0,0.25911739]
[1749462369197,3.82960084,106550.0,106540.0,0.58074595]
[1749462369397,3.82960084,106550.0,106540.0,0.39267334]
[1749462369699,1.75195108,106550.0,106500.0,0.99519032]
[1749462370003,0.50743554,106510.0,106500.0,1.15163156]
[1749462370208,0.31396127,106510.0,106500.0,1.48830766]
[1749462370502,0.42789846,106510.0,106500.0,1.48830766]
[1749462370706,0.25306292,106510.0,106500.0,1.67250766]
[1749462370997,0.09094195,106510.0,106500.0,1.79050766]
[1749462371204,1.31473096,106520.0,106500.0,1.79050766]
[1749462371401,0.18962795,106520.0,106500.0,2.31610766]
[1749462371696,0.17537647,106520.0,106510.0,0.43119]
[1749462371902,0.12799681,106520.0,106510.0,0.43119]
[1749462372098,0.88279,106520.0,106510.0,0.67280283]
[1749462372296,1.20758846,106520.0,106510.0,0.58249072]
[1749462372501,1.24874654,106520.0,106510.0,0.94329072]
[1749462372702,0.91128957,106520.0,106510.0,1.13429072]
[1749462372891,0.67701957,106520.0,106510.0,1.31949072]
[1749462373095,0.63302574,106520.0,106510.0,1.47529072]
[1749462373293,0.53931356,106520.0,106510.0,1.47529072]
[1749462373497,0.44660138,106520.0,106510.0,1.47529072]
[1749462373693,0.18696827,106520.0,106510.0,1.47829072]
[1749462373898,0.09325609,106520.0,106510.0,1.47829072]
[1749462374100,0.037018,106520.0,106510.0,1.47829072]
[1749462374299,0.3608,106540.0,106510.0,1.58117071]
[1749462374499,0.16083554,106540.0,106530.0,0.04699]
[1749462374698,0.25483554,106540.0,106530.0,0.24699]
[1749462374906,0.18817945,106540.0,106530.0,1.06255812]
[1749462375200,0.3608,106550.0,106530.0,1.06255812]
[1749462375201,0.53563554,106550.0,106530.0,1.06255812]
[1749462375401,0.3608,106580.0,106540.0,0.58262554]
[1749462375702,0.0004,106550.0,106540.0,1.06622554]
[1749462375998,0.3608,106570.0,106540.0,1.32079926]
[1749462376205,0.0004,106550.0,106540.0,1.41466072]
[1749462376504,0.5501,106570.0,106540.0,1.41474997]
[1749462376804,0.0004,106550.0,106540.0,1.41466072]
[1749462377003,0.0004,106550.0,106540.0,1.42166072]
[1749462377206,0.0004,106550.0,106540.0,1.51551672]
[1749462377507,0.0004,106550.0,106540.0,1.33368118]
[1749462377699,0.0004,106550.0,106540.0,1.33968118]
[1749462377898,0.0004,106550.0,106540.0,1.59868118]
[1749462379096,0.0004,106550.0,106540.0,1.59268118]
[1749462379301,0.0004,106550.0,106540.0,1.59968118]
[1749462379504,0.0004,106550.0,106540.0,1.59068118]
[1749462379707,0.0004,106550.0,106540.0,1.59868118]
[1749462380108,0.0004,106550.0,106540.0,1.59876956]
[1749462380294,0.0004,106550.0,106540.0,1.59868118]
[1749462380502,0.36094093,106560.0,106540.0,1.50491841]
[1749462380703,0.36094093,106560.0,106550.0,0.17483554]
[1749462380704,0.00014093,106560.0,106550.0,0.17483554]
[1749462380906,0.00014093,106560.0,106550.0,1.49427157]
[1749462381095,0.00014093,106560.0,106550.0,2.21960415]
[1749462381296,0.00054093,106560.0,106550.0,2.53539398]
[1749462381509,0.00014093,106560.0,106550.0,2.45441549]
[1749462381696,0.00054093,106560.0,106550.0,2.45441549]
[1749462382003,0.00054093,106560.0,106550.0,2.67624103]
[1749462382306,0.00054093,106560.0,106550.0,2.68093103]
[1749462382608,0.00014093,106560.0,106550.0,1.824605]
[1749462382908,0.17537647,106560.0,106550.0,2.14385041]
[1749462383109,0.00054093,106560.0,106550.0,2.15685041]
[1749462383296,0.00054093,106560.0,106550.0,2.9629552]
[1749462383497,0.00054093,106560.0,106550.0,2.9759552]
[1749462383906,0.00014093,106560.0,106550.0,2.9806352]
[1749462384106,0.00014093,106560.0,106550.0,2.98074482]
[1749462384311,0.00054093,106560.0,106550.0,2.9676352]
[1749462384610,0.00054093,106560.0,106550.0,2.41244979]
[1749462385103,0.00054093,106560.0,106550.0,2.41712979]
[1749462385305,0.00054093,106560.0,106550.0,2.41612979]
[1749462385505,0.00014093,106560.0,106550.0,2.38801979]
[1749462385698,0.00054093,106560.0,106550.0,2.42080979]
[1749462385901,0.00014093,106560.0,106550.0,2.42080979]
[1749462386305,0.00054093,106560.0,106550.0,2.42080979]
[1749462386706,0.00054093,106560.0,106550.0,1.619395]
[1749462387102,0.00054093,106560.0,106550.0,1.624075]
[1749462387508,0.00054093,106560.0,106550.0,1.586605]
[1749462387710,0.00054093,106560.0,106550.0,1.628605]
[1749462387911,0.00014093,106560.0,106550.0,1.628605]
[1749462388309,0.00054093,106560.0,106550.0,1.628605]
[1749462388909,0.00054093,106560.0,106550.0,1.47287706]
[1749462389215,0.00054093,106560.0,106550.0,1.722805]
[1749462389906,0.00054093,106560.0,106550.0,2.40658877]
[1749462390507,0.00014093,106560.0,106550.0,2.40658877]
[1749462390709,0.00054093,106560.0,106550.0,2.40658877]
[1749462390905,0.00014093,106560.0,106550.0,2.40658877]
[1749462391307,0.00054093,106560.0,106550.0,2.56238877]
[1749462391709,0.00054093,106560.0,106550.0,1.878605]
[1749462391905,0.00054093,106560.0,106550.0,2.67595351]
[1749462392110,0.00014093,106560.0,106550.0,2.67595351]
[1749462392311,0.00054093,106560.0,106550.0,3.35924852]
[1749462393115,0.00054093,106560.0,106550.0,3.10924852]
[1749462393719,0.00054093,106560.0,106550.0,2.31190001]
[1749462394117,0.00054093,106560.0,106550.0,2.15598528]
[1749462394510,0.17537647,106560.0,106550.0,2.15598528]
[1749462394820,0.37904093,106560.0,106550.0,2.15598528]
[1749462395213,0.00054093,106560.0,106550.0,2.33082082]
[1749462395413,0.00014093,106560.0,106550.0,2.33082082]
[1749462395607,0.00054093,106560.0,106550.0,2.33082082]
[1749462395917,0.00054093,106560.0,106550.0,1.64764054]
[1749462396119,0.00054093,106560.0,106550.0,1.80344054]
[1749462396419,0.005,106600.0,106550.0,2.54924438]
[1749462396621,0.005,106600.0,106550.0,2.64309238]
[1749462396924,0.005,106600.0,106580.0,0.17483554]
[1749462397217,0.0054,106600.0,106560.0,9.66e-05]
[1749462397407,0.0054,106600.0,106580.0,1.29673673]
[1749462397613,0.3662,106600.0,106580.0,1.34454913]
[1749462397813,0.3666,106600.0,106580.0,1.53274493]
[1749462398016,0.3662,106600.0,106580.0,1.89354493]
[1749462398318,0.3666,106600.0,106580.0,2.13490183]
[1749462398513,0.3608,106620.0,106580.0,2.01980183]
[1749462398714,0.3608,106610.0,106590.0,1.02208374]
[1749462399026,0.3608,106610.0,106590.0,1.38288374]
[1749462399314,0.3608,106610.0,106590.0,1.79283543]
[1749462399519,0.3608,106610.0,106600.0,0.50264]
[1749462399824,0.0004,106610.0,106600.0,0.86344]
[1749462400113,0.3608,106630.0,106600.0,1.19818477]
[1749462400319,0.0004,106610.0,106600.0,1.1983257]
[1749462400622,0.0004,106610.0,106600.0,0.8375257]
[1749462400820,0.0004,106610.0,106600.0,1.5421177]
[1749462401017,0.3612,106610.0,106600.0,0.6817257]
[1749462401326,0.0004,106610.0,106600.0,0.7237257]
[1749462401713,0.0004,106610.0,106600.0,1.1065257]
[1749462401918,0.0004,106610.0,106600.0,1.2873257]
[1749462402321,0.0004,106610.0,106600.0,1.7830257]
[1749462402624,0.3608,106620.0,106600.0,1.7190257]
[1749462402916,0.3612,106610.0,106600.0,1.2721057]
[1749462403123,0.3612,106610.0,106600.0,1.2471057]
[1749462403325,0.3612,106610.0,106600.0,1.4039057]
[1749462403529,0.3608,106620.0,106600.0,1.4289057]
[1749462403729,0.3612,106610.0,106600.0,1.4289057]
[1749462403910,0.3608,106620.0,106600.0,1.4289057]
[1749462404112,0.0004,106610.0,106600.0,1.4289057]
[1749462404611,0.0004,106610.0,106600.0,1.4335857]
[1749462404918,0.0004,106610.0,106600.0,1.7943857]
[1749462405114,0.0004,106610.0,106600.0,1.7693857]
[1749462405424,0.0004,106610.0,106600.0,1.7923857]
[1749462405720,0.0004,106610.0,106600.0,1.7953857]
[1749462406519,0.0004,106610.0,106600.0,1.4315857]
[1749462406725,0.3612,106610.0,106600.0,1.4315857]
[1749462407022,0.3612,106610.0,106600.0,1.2757857]
[1749462407726,0.3612,106610.0,106600.0,1.25708826]
[1749462407923,0.3612,106610.0,106600.0,1.23308826]
[1749462408124,0.0004,106610.0,106600.0,1.82087695]
[1749462408421,0.0004,106610.0,106600.0,1.84189168]
[1749462408621,0.3608,106630.0,106600.0,1.84177695]
[1749462408815,0.3608,106630.0,106600.0,1.84186576]
[1749462409122,0.0004,106610.0,106600.0,1.45697695]
[1749462409320,0.0004,106610.0,106600.0,5.97897695]
[1749462409523,0.0004,106610.0,106600.0,6.83547695]
[1749462409721,0.0004,106610.0,106600.0,6.27168826]
[1749462410020,0.3608,106630.0,106600.0,6.27168826]
[1749462410229,0.3608,106620.0,106600.0,5.85952826]
[1749462410522,0.0004,106610.0,106600.0,5.85952826]
[1749462410722,0.3612,106620.0,106600.0,6.42542833]
[1749462410930,0.3608,106610.0,106600.0,6.42542833]
[1749462411521,0.31149389,106610.0,106600.0,6.40342833]
[1749462411818,0.09545905,106610.0,106600.0,5.93472833]
[1749462412025,0.3612,106620.0,106600.0,5.90972833]
[1749462412228,0.3612,106620.0,106600.0,5.93472833]
[1749462412432,0.3612,106620.0,106610.0,0.67941879]
[1749462412630,0.722,106620.0,106610.0,0.97941879]
[1749462412930,0.722,106620.0,106610.0,1.22434144]
[1749462413122,0.722,106620.0,106610.0,1.31813687]
[1749462413629,0.9146,106620.0,106610.0,1.31813687]
[1749462414721,0.9146,106620.0,106610.0,1.34213687]
[1749462415121,0.9146,106620.0,106610.0,1.36613687]
[1749462415428,0.74656189,106620.0,106610.0,1.36613687]
[1749462415729,0.74656189,106620.0,106610.0,1.34013687]
[1749462415730,0.597111,106620.0,106610.0,1.34013687]
[1749462416024,0.49410771,106620.0,106610.0,0.68371808]
[1749462416322,0.41735339,106620.0,106610.0,0.68371808]
[1749462416530,0.36466495,106620.0,106610.0,0.68371808]
[1749462416722,0.31789844,106620.0,106610.0,0.68371808]
[1749462416923,0.30852134,106620.0,106610.0,0.68371808]
[1749462417121,0.21498832,106620.0,106610.0,0.68371808]
[1749462417326,0.5475,106630.0,106610.0,0.68371808]
[1749462417528,0.35949125,106620.0,106610.0,0.68371808]
[1749462417729,0.21922474,106620.0,106610.0,0.67714095]
[1749462417918,0.12569172,106620.0,106610.0,0.65411808]
[1749462418120,0.1867,106630.0,106610.0,1.39779804]
[1749462418427,0.1871,106630.0,106620.0,0.6542]
[1749462418741,0.0004,106630.0,106620.0,0.8208]
[1749462418931,0.5475,106660.0,106620.0,1.06608729]
[1749462419227,0.0004,106630.0,106620.0,0.99987392]
[1749462419730,0.3612,106630.0,106620.0,0.65907392]
[1749462419919,0.0004,106630.0,106620.0,1.02455392]
[1749462420124,0.0004,106630.0,106620.0,0.66384279]
[1749462420418,0.0004,106630.0,106620.0,1.02455392]
[1749462420621,0.0004,106630.0,106620.0,0.66375392]
[1749462420919,0.3855,106630.0,106620.0,0.66375392]
[1749462421316,0.3855,106630.0,106620.0,1.4567325]
[1749462421519,0.3855,106630.0,106620.0,1.8175325]
[1749462421722,0.3855,106630.0,106620.0,1.8385325]
[1749462422927,0.3855,106630.0,106620.0,0.84055392]
[1749462423123,0.3855,106630.0,106620.0,1.20135392]
[1749462423523,0.3851,106630.0,106620.0,2.6838314]
[1749462423724,0.7463,106630.0,106620.0,2.1307314]
[1749462424031,4.2463,106630.0,106620.0,1.2787314]
[1749462424222,4.2463,106630.0,106620.0,0.94015748]
[1749462424424,4.2463,106630.0,106620.0,1.48147968]
[1749462424830,4.2463,106630.0,106620.0,1.18097968]
[1749462425032,4.71557,106630.0,106610.0,0.00014093]
[1749462425229,4.33047,106630.0,106620.0,0.20887741]
[1749462425439,4.69127,106630.0,106620.0,0.34291386]
[1749462425731,4.222,106630.0,106620.0,0.88146607]
[1749462425919,4.222,106630.0,106620.0,1.08413011]
[1749462426124,4.69127,106630.0,106620.0,0.90293074]
[1749462426333,0.46927,106620.0,106560.0,1.36772199]
[1749462426524,0.214641,106590.0,106570.0,0.1952]
[1749462426728,0.16787787,106590.0,106580.0,0.24072191]
[1749462426924,0.07435161,106590.0,106580.0,0.14003228]
[1749462427122,0.26564267,106600.0,106570.0,0.95252191]
[1749462427329,2.184889,106600.0,106590.0,0.8016678]
[1749462427530,2.07101029,106600.0,106590.0,0.8016678]
[1749462427720,1.9883616,106600.0,106590.0,1.04132939]
[1749462428035,1.80219534,106600.0,106590.0,1.49094242]
[1749462428224,1.66190595,106600.0,106590.0,1.49094242]
[1749462428425,1.61514282,106600.0,106590.0,1.49094242]
[1749462428621,1.52161656,106600.0,106590.0,1.49094242]
[1749462428826,1.35507688,106600.0,106590.0,1.13014242]
[1749462429022,1.26150212,106600.0,106590.0,0.33347462]
[1749462429327,1.16992736,106600.0,106590.0,1.01960173]
[1749462429527,1.22296522,106600.0,106590.0,1.38040173]
[1749462429727,1.17617784,106600.0,106590.0,1.38040173]
[1749462430037,0.95702854,106600.0,106590.0,1.38040173]
[1749462430235,0.86182281,106600.0,106590.0,1.38040173]
[1749462430530,0.36795372,106600.0,106590.0,1.38040173]
[1749462430729,0.32116634,106600.0,106590.0,1.38040173]
[1749462430938,0.18180769,106600.0,106590.0,1.38040173]
[1749462431125,0.08863293,106600.0,106590.0,1.38040173]
[1749462431325,0.04184555,106600.0,106590.0,0.69427462]
[1749462431531,0.77848172,106610.0,106590.0,0.69427462]
[1749462431726,0.37569524,106610.0,106590.0,1.56774745]
[1749462431928,0.32890786,106610.0,106590.0,1.56774745]
[1749462432129,0.2354331,106610.0,106600.0,0.68537068]
[1749462432324,0.29403616,106610.0,106600.0,0.76044507]
[1749462432523,0.22596035,106610.0,106600.0,1.00342928]
[1749462432729,0.08575939,106610.0,106600.0,1.09711839]
[1749462433030,0.43260812,106620.0,106610.0,0.02808]
[1749462433230,1.23024598,106620.0,106610.0,0.04684]
[1749462433436,1.11277688,106620.0,106610.0,0.28590618]
[1749462433636,1.01920212,106620.0,106610.0,0.37971041]
[1749462433836,0.3608,106650.0,106610.0,0.55434636]
[1749462434132,1.29864,106650.0,106620.0,0.53543595]
[1749462434532,1.29864,106650.0,106620.0,0.67682423]
[1749462434832,0.1967,106640.0,106620.0,0.87478053]
[1749462435233,1.13454,106640.0,106620.0,0.70014458]
[1749462435632,0.1967,106630.0,106620.0,0.70014458]
[1749462437736,1.30917595,106630.0,106620.0,0.33934458]
[1749462438034,1.30917595,106630.0,106620.0,0.43934458]
[1749462438239,1.49534,106630.0,106620.0,1.10986849]
[1749462438446,1.66997595,106630.0,106620.0,1.10986849]
[1749462438833,1.49534,106630.0,106620.0,1.10986849]
[1749462439134,1.13454,106630.0,106620.0,1.47066849]
[1749462439333,1.13454,106630.0,106620.0,1.45190849]
[1749462439538,1.13494,106630.0,106620.0,1.45190849]
[1749462439739,1.13494,106630.0,106620.0,2.13625031]
[1749462439938,1.13494,106630.0,106620.0,1.77545031]
[1749462440532,1.13494,106630.0,106620.0,1.76609498]
[1749462440842,1.13494,106630.0,106620.0,1.75669031]
[1749462441442,1.30957595,106630.0,106620.0,1.75669031]
[1749462441742,1.30957595,106630.0,106620.0,1.1861664]
[1749462441940,1.67037595,106630.0,106620.0,1.1861664]
[1749462442735,1.92037595,106630.0,106620.0,1.1861664]
[1749462443130,1.92037595,106630.0,106620.0,0.50182458]
[1749462443336,1.67037595,106630.0,106620.0,0.50182458]
[1749462443537,1.74574,106630.0,106620.0,0.50182458]
[1749462443736,1.49574,106630.0,106620.0,0.50182458]
[1749462443936,1.49534,106630.0,106620.0,0.50182458]
[1749462444339,1.49574,106630.0,106620.0,0.50193071]
[1749462444539,1.49574,106630.0,106620.0,0.50182458]
[1749462444540,1.67037595,106630.0,106620.0,0.50182458]
[1749462444939,1.30957595,106630.0,106620.0,1.1861664]
[1749462445744,1.67037595,106630.0,106620.0,1.1861664]
[1749462446235,1.49574,106630.0,106620.0,1.1861664]
[1749462446631,1.13494,106630.0,106620.0,0.50182458]
[1749462447238,1.49574,106630.0,106620.0,0.50182458]
[1749462447436,1.13494,106630.0,106620.0,0.69802458]
[1749462447940,1.30957595,106630.0,106620.0,0.69802458]
[1749462448144,1.67037595,106630.0,106620.0,0.57734875]
[1749462449343,1.49574,106630.0,106620.0,0.57734875]
[1749462449636,1.67037595,106630.0,106620.0,0.57734875]
[1749462449838,1.49574,106630.0,106620.0,0.57734875]
[1749462450033,1.67037595,106630.0,106620.0,0.57734875]
[1749462450432,1.10685995,106630.0,106620.0,0.80478875]
[1749462450633,0.1782235,106630.0,106620.0,0.99058875]
[1749462450844,0.0004,106650.0,106620.0,1.7187247]
[1749462451138,0.47910732,106650.0,106630.0,1.72351586]
[1749462451340,0.47910732,106650.0,106630.0,1.36061586]
[1749462451542,0.30447137,106650.0,106630.0,1.60821102]
[1749462451729,0.47910732,106650.0,106630.0,1.70199765]
[1749462452334,0.30447137,106650.0,106630.0,2.51763108]
[1749462452535,0.47870732,106650.0,106630.0,2.51763108]
[1749462452738,0.47910732,106650.0,106630.0,1.69904522]
[1749462453141,0.47910732,106650.0,106640.0,1.00030627]